{"text_format":"1","workbook":"xlsx","n_sheets":3,"sheets":["Deklaration","Tabelle 3. Säule","Tabelle1"],"not_rendered":{"charts":0,"images":2,"macros":1,"external_links":0,"defined_names":108,"comments":1,"pivot_tables":0},"unopened":[],"bounds":{"document_bytes":16777216,"sheet_cells":100000,"rows_first":2000,"rows_last":500,"rows_between":2000,"halvings":0,"cell_chars":16384,"cell_head_chars":4096},"cells_cut":0,"cells_raw":0,"read":"whole","date_system":"1900"}

{"sheet":"Deklaration","index":0,"n_rows":119,"n_cols":17,"rows_kept":119,"cut":false,"hidden":false,"merged":[[21,2,21,5],[22,2,22,5],[23,2,23,5],[25,2,25,5],[4,0,4,1],[5,0,5,15],[6,0,6,15],[30,12,30,15],[91,1,91,8],[24,2,24,5],[118,2,118,3],[100,1,100,8],[101,1,101,8],[92,1,92,8],[93,1,93,8],[94,1,94,8],[99,1,99,8]]}
[]
[]
[]
["Version 13.0 / 2024"]
["2024-03-05"]
["Liquidationsgewinn für die privilegierte Besteuerung"]
["bei Aufgabe der selbständigen Erwerbstätigkeit "]
[]
[]
[null,null,null,null,"Details zu den Veranlagungsverfügungen"]
[]
[]
[]
[]
[]
[]
["Angaben zur steuerpflichtigen Person, welche die selbstständige Erwerbstätigkeit aufgibt sowie zur Realisation"]
["der stillen Reserven."]
[]
["Steuerpflichtige Person"]
["Person-Id.",null,null,null,null,null,null,null,null,null,"Geschlecht"]
["Name/Vorname",null,{"$f":"Name&\" \"&Rufname","v":" "}]
["Strasse",null,{"$f":"AdrDetStrasse&\" \"&AdrDetHausNr&AdrDetHausNrAlpha","v":" "},null,null,null,null,null,null,null,"Datum der Liquidation",null,null,{"$f":"IF(M23=\"\",\"Liquidationsdatum muss erfasst werden!\",\"\")","v":"Liquidationsdatum muss erfasst werden!"}]
["PLZ/Wohnort",null,{"$f":"AdrDetPLZ&\" \"&AdrDetOrt","v":" "},null,null,null,null,null,null,null,"Geburtsdatum",null,null,{"$f":"IF(M24=\"\",\"Geburtsdatum muss erfasst werden!\",\"\")","v":"Geburtsdatum muss erfasst werden!"}]
["Geschäftsort",null,null,null,null,null,null,null,null,null,"Alter im Zeitpunkt der Liquidation",null,{"$f":"IF(M23=\"\",\"\",DATEDIF(M24,M23,\"y\"))","v":""}]
["Parzellen-Nr."]
[{"$f":"IF(M25<=54,\"Altersgrenze nicht erreicht: Deklaration ist nur möglich, wenn Unfähigkeit zur Weiterführung der selbst. Erwerbstätigkeit infolge Invalidität vorliegt.\",\"\")","v":""}]
[]
["Wurde in früheren Jahren eine privilegierte Besteuerung eines Liquidationsgewinns geltend gemacht?",null,null,null,null,null,null,null,null,null,null,null,"Nein"]
[{"$f":"IF(M29=\"Nein\",\"\",\"Die privilegierte Besteuerung des Liquidationsgewinns kann nur einmal geltend gemacht werden!\")","v":""}]
[null,null,null,null,null,null,null,null,null,null,null,null,"alle Beträge in CHF"]
["A","Berechnung des Liquidationsgewinns im Liquidationsjahr / Liegenschaften",null,null,null,null,null,null,null,null,null,null,null,"Staat",null,"Bund"]
[null,"Verkauf / Überführung der geschäftlichen Liegenschaften "]
[1,"Verkaufspreis / Überführungswert der Liegenschaften"]
[2,"./. Anlagekosten der Liegenschaften"]
[3,"Wertzuwachsgewinn Liegenschaften (Besteuerung nur bei Bund)",null,null,null,null,null,null,null,null,null,null,{"$f":"M34-M35","v":0},null,null,{"$f":"IF(M36<0,0,M36)","v":0},{"$f":"IF(M36<0,\"Hinweis: Verluste werden nicht angerechnet\",\"\")","v":""}]
[]
[10,"Anlagekosten der Liegenschaften (Ziffer 2),  bzw. Verkaufspreis / Überführungswert"]
[null,"der Liegenschaften (Ziffer 1), wenn dieser tiefer ist als die Anlagekosten",null,null,null,null,null,null,null,null,null,null,{"$f":"IF(M36<0,M34,M35)","v":0}]
[11,"./. Buchwert der geschäftlichen Liegenschaften"]
[12,"./. Anteil Liquidationskosten "]
[13,"Kapitalgewinn Liegenschaften: wiedereingebrachte Abschreibungen",null,null,null,null,null,null,null,null,null,null,null,{"$f":"M39-M40-M41","v":0},null,{"$f":"N42","v":0}]
[]
[]
[20,"Realisierung stiller Reserven auf den restlichen Aktiven"]
[21,"./. Anteil Liquidationskosten "]
[22,"Kapitalgewinn auf restlichen Aktiven, netto",null,null,null,null,null,null,null,null,null,null,null,{"$f":"M45-M46","v":0},null,{"$f":"N47","v":0}]
[30,"Total Liquidationsgewinn im Liquidationsjahr",null,null,null,null,null,null,null,null,null,null,null,{"$f":"SUM(N42+N47)","v":0},null,{"$f":"P36+P42+P47","v":0}]
[]
["B","Auflösung von stillen Reserven im Vorjahr"]
[40,"Auflösung stille Reserven im Vorjahr",null,null,null,{"$f":"IF(M23=\"\",\"\",YEAR(M23)-1)","v":""}]
[41,"./. Aufwand, verursacht durch Realisierung dieser stillen Reserven"]
[42," Aufgelöste stille Reserven im Vorjahr",null,null,null,null,null,null,null,null,null,null,null,{"$f":"M51-M52","v":0},null,{"$f":"N53","v":0}]
[50,"Total realisierte stille Reserven",null,null,null,null,null,null,null,null,null,null,null,{"$f":"N48+N53","v":0},null,{"$f":"P48+P53","v":0}]
[]
["C","Übrige Abzüge",null,null,null,null,null,null,null,null,"Staat",null,"Bund"]
[60,"Verlustvortrag, der im Liquidationsjahr nicht bereits "]
[null,"mit Einkommen aus ordentlicher Geschäftstätigkeit verrechnet werden konnte"]
[61,"Verlustüberschuss aus ordentlicher Geschäftstätigkeit des Liquidationsjahres"]
[62,"sonstige Abzüge, z.B. Beitragsüberhang aus Einkauf 2. Säule im Liquidationsjahr"]
[63,"./. Summe der Abzüge",null,null,null,null,null,null,null,null,{"$f":"SUM(K58:K60)","v":0},null,{"$f":"SUM(M58:M60)","v":0},{"$f":"K61","v":0},null,{"$f":"M61","v":0}]
[70,"Total massgebender Liquidationsgewinn vor AHV-Abzug",null,null,null,null,null,null,null,null,null,null,null,{"$f":"N54-N61","v":0},null,{"$f":"P54-P61","v":0}]
[]
["D","Abzug der persönlichen AHV-Beiträge"]
[80,"./. Anrechnung AHV-Anteil vom Bund (inkl. Verwaltungskosten)",null,null,null,null,null,null,0.1,null,null,null,null,{"$f":"P65","v":0},null,{"$f":"P62*I65","v":0}]
[null," "]
[90,"Steuerbarer Liquidationsgewinn",null,null,null,"Übertrag auf die nächste Seite",null,null,null,null,null,null,null,{"$f":"N62-N65","v":0},null,{"$f":"P62-P65","v":0}]
[]
[]
[null,null,null,null,null,null,null,null,null,null,null,null,null,"Staat",null,"Bund"]
[{"$f":"A67","v":90},"Steuerbarer Liquidationsgewinn ",null,null,null,"Übertrag aus vorheriger Seite ",null,null,null,null,null,null,null,{"$f":"N67","v":0},null,{"$f":"P67","v":0}]
[]
["E","Berechnung fiktiver Einkauf  ",null,null,null,null,{"$f":"IF(M25>69,\"Einkauf beschränkt bis 70. Altersjahr!\",\"\")","v":"Einkauf beschränkt bis 70. Altersjahr!"}]
[null,"AHV-pflichtiges Einkommen aus der selbst. Erwerbstätigkeit (SE) der letzten 5 Jahre "]
[null,"vor der Liquidation / dem ordentlichen Rentenalter"]
[null,null,null,null,null,null,null,null,"Gewinn aus SE"]
[]
[101,"Einkommen aus SE im Jahr 1 vor Liquidation / dem ord. Rentenalter"]
[{"$f":"A78+1","v":102},"Einkommen aus SE im Jahr 2 vor Liquidation / dem ord. Rentenalter"]
[{"$f":"A79+1","v":103},"Einkommen aus SE im Jahr 3 vor Liquidation / dem ord. Rentenalter"]
[{"$f":"A80+1","v":104},"Einkommen aus SE im Jahr 4 vor Liquidation / dem ord. Rentenalter",null,null,null,null,null,null," "]
[{"$f":"A81+1","v":105},"Einkommen aus SE im Jahr 5 vor Liquidation / dem ord. Rentenalter"]
[{"$f":"A82+1","v":106},"Massgebende Summe der Einkommen aus der selbst. Erwerbstätigkeit",null,null,null,null,null,null,{"$f":"SUM(I78:I82)","v":0}]
[107,"Durchschnittliches Einkommen aus SE der letzten",null,null,null,null,{"$f":"IF(I78=\"\",\"\",COUNT(I78:I82))","v":""},"Jahre",{"$f":"IF(I78=\"\",\"\",I83/G84)","v":""}]
[108,"Anrechenbares Einkommen (maximale Begrenzung 10-facher oberer Grenzbetrag nach BVG)",null,null,null,null,null,null,null,null,{"$f":"IF(OR(M23=\"\",YEAR(M23)=\"\"),\"\",IF(VLOOKUP(YEAR(M23),'Tabelle 3. Säule'!$A$57:$B$102,2,TRUE)*10>I84,I84,(VLOOKUP(YEAR(M23),'Tabelle 3. Säule'!$A$57:$B$102,2,TRUE)*10)))","v":""},null,null,null,null,null,{"$f":"IF(K85<I84,\"Begrenzung auf 10-fachen BVG-Betrag\",\"\")","v":""}]
[109,"Anzahl Jahre ab 25 bis Liquidationsjahr (Begrenzt bis ordentliches Rentenalter: m = 65 / w = 64)",null,null,null,null,null,null,null,null,{"$f":"IF(M25=\"\",\"\",IF(AND(M21=\"Mann\",YEAR(M23)-YEAR(M24)-25>39),40,IF(AND(M21=\"Frau\",YEAR(M23)-YEAR(M24)-25>38),39,YEAR(M23)-YEAR(M24)-25+1)))","v":""}]
[110,"Versicherbare Summe aller Einkommen aus SE ",null,null,null,null,null,null,null,null,{"$f":"IF(I78=\"\",\"\",K85*K86)","v":""}]
[111,"Davon maximal mögliche Vorsorge (15%)",null,null,null,null,null,null,null,null,null,null,{"$f":"IF(I78=\"\",0,K87*0.15)","v":0}]
[]
[null,"Vorsorgeguthaben 2. Säule inkl. getätigte Vorbezüge (WEF usw.) "]
[]
[120]
[{"$f":"A92+1","v":121}]
[{"$f":"A93+1","v":122}]
[{"$f":"A94+1","v":123}]
[124,"./. Abzug für 2. Säule-Guthaben ",null,null,null,null,null,null,null,null,null,null,{"$f":"SUM(K92:K95)","v":0}]
[]
[null,"Angaben für die Ermittlung des Differenzbetrages für grosse/kleine Säule 3a"]
[null,"Aktuell vorhandene Vermögen und frühere Auflösung von Säule 3a-Konten"]
[{"$f":"A96+1","v":125}]
[{"$f":"A100+1","v":126}]
[{"$f":"A101+1","v":127}]
[{"$f":"A102+1","v":128},"Total der vorhandenen Säule 3a",null,null,null,null,null,null,null,null,{"$f":"SUM(K100:K102)","v":0}]
[{"$f":"A103+1","v":129},"./. Anrechnung Differenzbetrag der kleinen Säule 3a (vgl. Tabelle 3. Säule)",null,null,null,null,null,null,null,null,{"$f":"IF(M23=\"\",\"\",IF(YEAR(M24)<1963,VLOOKUP(\"1962 u. früher \",'Tabelle 3. Säule'!A13:Q254,Deklaration!Q104,TRUE),IF(YEAR(M24)>1962,VLOOKUP(YEAR(M24),'Tabelle 3. Säule'!A13:Q254,Deklaration!Q104,TRUE),\"\")))","v":""},null,null,null,null,null,{"$f":"IF(M23=\"\",\"\",(YEAR(M23)-'Tabelle 3. Säule'!C12)+3)","v":""}]
[]
[140,"./. Abzug Anteil der vorhanden Säule 3a",null,null,null,null,null,null,null,null,null,null,{"$f":"IF(K104=\"\",0,IF(K103-K104<0,0,K103-K104))","v":0}]
[150,"Maximal möglicher fiktiver Einkauf",null,null,null,null,null,null,null,null,null,null,{"$f":"IF(M88-M96-M106<0,0,M88-M96-M106)","v":0}]
[]
[160,"./. Anteil fiktiver Einkauf",null,null,null,null,null,null,{"$f":"IF(M25>69,\"Einkauf beschränkt bis 70. Altersjahr\",\"\")","v":"Einkauf beschränkt bis 70. Altersjahr"},null,null,null,null,{"$f":"IF(M25>69,0,IF(M107>N71,N71,M107))","v":0},null,{"$f":"IF(M25>69,0,IF(M107>P71,P71,M107))","v":0}]
[null,"Besteuerung gemäss § 36bis StG und 1/5 des Tarifes gemäss Art. 36 DBG"]
[]
[170,"Übriger Liquidationsgewinn",null,null,null,null,null,null,null,null,null,null,null,{"$f":"IF(N71-N109<0,0,ROUND(N71,0)-ROUND(N109,0))","v":0},null,{"$f":"IF(P71-P109<0,0,ROUND(P71,0)-ROUND(P109,0))","v":0}]
[null,"Besteuerung gemäss § 36bis StG (mind. 5%) und zum Satz von 1/5 gemäss Art. 36 DBG (mind. 2%)"]
[]
[]
[]
[]
[]
[null,"Datum: ",{"$f":"TODAY()","v":"2024-03-05"}]

{"sheet":"Tabelle 3. Säule","index":1,"n_rows":93,"n_cols":11,"rows_kept":93,"cut":false,"hidden":false,"merged":[]}
[null,null,null,null,null,"Eidgenössisches Departement des Innern EDI"]
[null,null,null,null,null,"Bundesamt für Sozialversicherungen BSV"]
[null,null,null,null,null,"Mathematik, Analysen, Statistik"]
[]
[]
[]
["Tabelle zur Berechnung des grösstmöglichen 3a-Guthaben (nach Art. 60a ",null,null,null,null,null,null,null,null,null,"http://www.bsv.admin.ch/themen/vorsorge/00039/index.html?lang=de"]
["Abs. 2 BVV 2 und Art. 7 Abs. 1 Bst. a BVV 3) nach Jahrgang "]
["(Beginn am 1. Januar des Jahres, in dem das 25. Altersjahr vollendet wird)"]
[]
["Geburtsjahr ","Beginn 1. Jan. ","Stand 31. Dez. ","Stand 31. Dez. ","Stand 31. Dez. ","Stand 31. Dez. ","Stand 31. Dez. ","Stand 31. Dez. ","Stand 31. Dez. ","Stand 31. Dez. ","Stand 31. Dez. "]
[null,null,2016,2017,2018,2019,2020,2021,2022,2023,2024]
["1962 u. früher ",1987,252519,261813,271199,280737,290370,300157,310042,320198,331257]
[1963,1988,242521,251714,260999,270435,279966,289648,299428,309478,320403]
[1964,1989,232506,241599,250783,260117,269544,279122,288797,298741,309531]
[1965,1990,222876,231873,240959,250195,259523,269001,278575,288416,299078]
[1966,1991,212999,221897,230884,240019,249245,258621,268090,277827,288356]
[1967,1992,203502,212305,221196,230234,239363,248639,258009,267645,278047]
[1968,1993,193229,201929,210717,219650,228672,237842,247104,256631,266895]
[1969,1994,182913,191510,200193,209021,217937,227000,236153,245571,255696]
[1970,1995,172993,181491,190074,198801,207615,216574,225623,234935,244928]
[1971,1996,163151,171550,180034,188660,197373,206230,215175,224383,234244]
[1972,1997,153686,161991,170379,178909,187524,196283,205129,214236,223970]
[1973,1998,144352,152563,160857,169292,177810,186472,195220,204228,213837]
[1974,1999,135376,143498,151701,160044,168470,177038,185692,194605,204093]
[1975,2000,126658,134693,142808,151062,159399,167876,176438,185258,194630]
[1976,2001,118276,126227,134257,142425,150676,159066,167539,176271,185530]
[1977,2002,110015,117883,125830,133915,142080,150384,158771,167414,176563]
[1978,2003,102072,109861,117728,125731,133814,142036,150339,158899,167941]
[1979,2004,94193,101903,109690,117613,125615,133754,141975,150451,159387]
[1980,2005,86487,94119,101829,109673,117596,125655,133795,142189,151022]
[1981,2006,78826,86382,94014,101780,109624,117604,125663,133975,142706]
[1982,2007,71352,78834,86390,94080,101847,109749,117729,125963,134593]
[1983,2008,63857,71264,78745,86358,94048,101871,109773,117927,126457]
[1984,2009,56563,63897,71303,78843,86457,94205,102030,110106,118539]
[1985,2010,49186,56445,63778,71242,78780,86451,94199,102197,110530]
[1986,2011,41953,49140,56400,63790,71254,78850,86521,94442,102679]
[1987,2012,34737,41852,49039,56355,63745,71265,78861,86706,94846]
[1988,2013,27627,34672,41786,49030,56347,63793,71314,79083,87128]
[1998,2014,20563,27537,34580,41752,48996,56369,63816,71510,79460]
[1990,2015,13621,20525,27498,34599,41771,49072,56446,64066,71923]
[1991,2016,6768,13604,20508,27539,34640,41870,49172,56719,64484]
[1992,2017,0,6768,13604,20566,27597,34757,41987,49463,57137]
[1993,2018,null,0,6768,13662,20624,27714,34874,42279,49863]
[1994,2019,null,null,null,6826,13720,20741,27831,35166,42661]
[1995,2020,null,null,null,null,6826,13777,20798,28062,35469]
[1996,2021,null,null,null,null,null,6883,13835,21030,28348]
[1997,2022,null,null,null,null,null,null,6883,14008,21239]
[1998,2023,null,null,null,null,null,null,null,7056,14200]
[1999,2024,null,null,null,null,null,null,null,null,7056]
[]
[]
[]
[]
["Berufliche Vorsorge: oberer Grenzbetrag nach BVG pro Jahr"]
["Jahr","Betrag"]
[2006,77400]
[2007,79560]
[2008,79560]
[2009,82080]
[2010,82080]
[2011,83520]
[2012,83520]
[2013,84240]
[2014,84240]
[2015,84600]
[2016,84600]
[2017,84600]
[2018,84600]
[2019,85320]
[2020,85320]
[2021,86040]
[2022,86040]
[2023,88200]
[2024,88200]
[]
[]
[]
[]
[]
[]
["Parameter für 2013 angepasst: 07.01.2013/P. Gysin"]
["Parameter für 2014 angepasst: 09.12.2013/P. Gysin"]
["Parameter für 2015 angepasst: 02.12.2014/P. Gysin"]
["Parameter für 2016 angepasst: 29.12.2015/P. Gysin"]
["Parameter für 2017 angepasst: 27.12.2016/P. Gysin"]
["Parameter für 2018 angepasst: 08.01.2018/P. Gysin"]
["Parameter für 2019 angepasst: 08.01.2019/M Cueni"]
["Parameter für 2020 angepasst: 08.01.2020/M Cueni"]
["Parameter für 2021 angepasst: 17.03.2021/M Cueni"]
["Parameter für 2022 angepasst: 13.01.2022/S. Di Biase"]
["Parameter für 2023 angepasst: 16.01.2023/S. Di Biase"]
["Parameter für 2024 angepasst: 15.01.2024/S. Di Biase"]

{"sheet":"Tabelle1","index":2,"n_rows":90,"n_cols":2,"rows_kept":90,"cut":false,"hidden":true,"merged":[]}
["Alle verfügbaren Office-Variablen"]
["Siehe Lieferschein ST40sa02.doc"]
[]
["Variable","Inhalt"]
["PersID"]
["RegisterNr"]
["RegisterNrKAST"]
["PersArt"]
["Name"]
["Rufname"]
["Bestand"]
["SteuerArt"]
["SteuerArtBez"]
["EreigVon"]
["EreigBis"]
["SteuerFallNr"]
["Periode"]
["PriGde"]
["PriGdeBez"]
["PriGdePlz"]
["PriGdeTel"]
["VeranlagungsGde"]
["VeranlagungsGdeBez"]
["VeranlagungsGdePlz"]
["VeranlagungsGdeTel"]
["Sachb"]
["SachbBez"]
["SachbTel"]
["SachbAbt"]
["LogUser"]
["LogUserBez"]
["LogUserTel"]
["AdrZeile1"]
["AdrZeile2"]
["AdrZeile3"]
["AdrZeile4"]
["AdrZeile5"]
["AdrZeile6"]
["AdrZeile7"]
["AdrDetPersID"]
["AdrDetName"]
["AdrDetRufname"]
["AdrDetZus1"]
["AdrDetStrasse"]
["AdrDetHausNr"]
["AdrDetHausNrAlpha"]
["AdrDetPLZ"]
["AdrDetOrt"]
["AdrDetNameP"]
["AdrDetRufnameP"]
["BetrifftAnrede"]
["BetrifftTitel"]
["BetrifftName"]
["BetrifftNameP"]
["BetrifftAdrZus1"]
["BetrifftAdrZus2"]
["BetrifftPostfach"]
["BetrifftStrasse"]
["BetrifftPlzOrt"]
["BetrifftAdrZeile1"]
["BetrifftAdrZeile2"]
["BetrifftAdrZeile3"]
["BetrifftAdrZeile4"]
["BetrifftAdrZeile5"]
["BetrifftAdrZeile6"]
["BetrifftAdrZeile7"]
["BetrifftDetPersID"]
["BetrifftDetName"]
["BetrifftDetRufname"]
["BetrifftDetZus1"]
["BetrifftDetStrasse"]
["BetrifftDetHausNr"]
["BetrifftDetHausNrAlp"]
["BetrifftDetPLZ"]
["BetrifftDetOrt"]
["BetrifftDetNameP"]
["BetrifftDetRufnameP"]
["BAnrede1"]
["BAnrede2"]
["AbteilungsName1"]
["AbteilungsName2"]
["AbteilungsPostfach"]
["AbteilungsStrasse"]
["AbteilungsPlzOrt"]
["AbteilungsTelefon"]
["AbteilungsFax"]
["AbteilungsAbsend1"]
["AbteilungsAbsend2"]
["AbteilungsGemeinde"]
["BetrifftEinzeilig"]